fUSD/lending_fUSD_20251123
["ID","MTS","AMOUNT","RATE_DAILY","PERIOD"]
[394752508,1763928650002,-500.0,0.00038356,8]
[394752509,1763928650012,-364.33823074,0.00038356,8]
[394752510,1763928650021,-1147.88,0.00038356,8]
[394752511,1763928650030,-500.0,0.00038356,8]
[394752512,1763928650039,-500.0,0.00038356,8]
[394752513,1763928650048,-500.0,0.00038356,8]
[394752514,1763928650057,-500.0,0.00038356,8]
[394752515,1763928650067,-173.6898241,0.00038356,8]
[394752516,1763928650076,-500.0,0.00038356,8]
[394752517,1763928650085,-500.0,0.00038356,8]
[394752518,1763928650094,-500.0,0.00038356,8]
[394752519,1763928650103,-412.84470507,0.00038356,8]
[394752520,1763928650112,-1173.65,0.00038356,8]
[394752521,1763928650121,-500.0,0.00038356,8]
[394752522,1763928650130,-500.0,0.00038356,8]
[394752523,1763928650140,-151.0,0.00038356,31]
[394752524,1763928650150,-884.32,0.00038356,8]
[394752525,1763928650159,-500.0,0.00038356,8]
[394752526,1763928650169,-500.0,0.00038356,8]
[394752527,1763928650179,-157.28602861,0.00038356,8]
[394752528,1763928650600,-342.71397139,0.00038356,8]
[394752529,1763928650610,-337.77054539,0.00038356,8]
[394752530,1763928650709,-513.46651266,0.0003385,5]
[394752531,1763928650719,-162.22945461,0.00038356,8]
[394752532,1763928650729,-629.08,0.00038356,8]
[394752533,1763928650738,-500.0,0.00038356,8]
[394752534,1763928650747,-500.0,0.00038356,8]
[394752535,1763928650758,-500.0,0.00038356,8]
[394752536,1763928650767,-125.62403273,0.00038356,8]
[394752537,1763928650778,-374.37596727,0.00038356,8]
[394752538,1763928650787,-715.57,0.00038356,8]
[394752539,1763928650796,-567.09,0.00038356,8]
[394752540,1763928650805,-500.0,0.00038356,8]
[394752541,1763928650814,-763.62,0.00038356,8]
[394752542,1763928650823,-151.0,0.00038356,31]
[394752543,1763928650832,-500.0,0.00038356,8]
[394752544,1763928650842,-500.0,0.00038356,8]
[394752545,1763928650851,-500.0,0.00038356,8]
[394752546,1763928650933,-500.0,0.00038356,8]
[394752547,1763928650978,-500.0,0.00038356,8]
[394752548,1763928650988,-768.23,0.00038356,8]
[394752549,1763928650997,-500.0,0.00038356,8]
[394752550,1763928651006,-500.0,0.00038356,8]
[394752551,1763928651016,-500.0,0.00038356,8]
[394752552,1763928651026,-500.0,0.00038356,8]
[394752553,1763928651035,-500.0,0.00038356,8]
[394752554,1763928651045,-500.0,0.00038356,8]
[394752555,1763928651054,-85.50675655,0.00038356,8]
[394752556,1763928651311,-561.0,0.00035734,2]
[394752557,1763928651321,-414.49324345,0.00038356,8]
[394752558,1763928651330,-500.0,0.00038356,8]
[394752559,1763928651340,-431.648201,0.00038356,30]
[394752560,1763928651349,-500.0,0.00038356,8]
[394752561,1763928651359,-431.648201,0.00038356,30]
[394752562,1763928651368,-679.42,0.00038356,8]
[394752563,1763928651377,-431.648201,0.00038356,30]
[394752564,1763928651386,-500.0,0.00038356,8]
[394752565,1763928651397,-23.06553677,0.00038356,8]
[394752566,1763928651408,-476.93446323,0.00038356,8]
[394752567,1763928651417,-500.0,0.00038356,8]
[394752568,1763928651427,-431.648201,0.00038356,30]
[394752569,1763928651436,-500.0,0.00038356,8]
[394752570,1763928651445,-328.26641814,0.00038356,31]
[394752571,1763928651461,-44.63461686,0.00038356,31]
[394752572,1763928651471,-500.0,0.00038356,8]
[394752573,1763928651480,-372.901035,0.00038356,31]
[394752574,1763928651489,-651.21,0.00038356,8]
[394752575,1763928651499,-431.648201,0.00038356,30]
[394752576,1763928651508,-500.0,0.00038356,8]
[394752577,1763928651518,-431.648201,0.00038356,30]
[394752578,1763928651527,-372.901035,0.00038356,31]
[394752579,1763928651537,-372.901035,0.00038356,31]
[394752580,1763928651548,-500.0,0.00038356,8]
[394752581,1763928651560,-431.648201,0.00038356,30]
[394752582,1763928651570,-500.0,0.00038356,8]
[394752583,1763928651581,-431.648201,0.00038356,30]
[394752584,1763928651591,-500.0,0.00038356,8]
[394752585,1763928651601,-372.901035,0.00038356,31]
[394752586,1763928651611,-372.901035,0.00038356,31]
[394752587,1763928651620,-403.44208849,0.00038356,8]
[394752588,1763928651629,-500.0,0.00038356,8]
[394752589,1763928651638,-1875.73,0.00038356,8]
[394752590,1763928651649,-500.0,0.00038356,8]
[394752591,1763928651659,-372.901035,0.00038356,31]
[394752592,1763928651668,-500.0,0.00038356,8]
[394752593,1763928651677,-372.901035,0.00038356,31]
[394752594,1763928651686,-500.0,0.00038356,8]
[394752595,1763928651696,-500.0,0.00038356,8]
[394752596,1763928651706,-833.66,0.00038356,8]
[394752597,1763928651715,-946.01,0.00038356,8]
[394752598,1763928651724,-500.0,0.00038356,8]
[394752599,1763928651734,-500.0,0.00038356,8]
[394752600,1763928651744,-500.0,0.00038356,8]
[394752601,1763928651753,-500.0,0.00038356,8]
[394752602,1763928651762,-586.91,0.00038356,8]
[394752603,1763928651771,-500.0,0.00038356,8]
[394752604,1763928651788,-500.0,0.00038356,8]
[394752605,1763928651802,-500.0,0.00038356,8]
[394752606,1763928651811,-286.9,0.00038356,8]
[394752607,1763928651821,-500.0,0.00038356,8]
[394752608,1763928651830,-470.25072887,0.00038356,8]
[394752609,1763928651842,-32.93927113,0.00038356,8]
[394752610,1763928651852,-500.0,0.00038356,8]
[394752611,1763928651861,-500.0,0.00038356,8]
[394752612,1763928651870,-552.44394377,0.00038356,8]
[394752613,1763928651881,-257.42605623,0.00038356,8]
[394752614,1763928651891,-116.13834377,0.00038356,8]
[394752615,1763928651903,-383.86165623,0.00038356,8]
[394752616,1763928651912,-500.0,0.00038356,8]
[394752617,1763928651921,-150.88231679,0.00038356,8]
[394752618,1763928651932,-349.11768321,0.00038356,8]
[394752619,1763928651942,-46.35431679,0.00038356,8]
[394752620,1763928651953,-453.64568321,0.00038356,8]
[394752621,1763928651962,-500.0,0.00038356,8]
[394752622,1763928651971,-500.0,0.00038356,8]
[394752623,1763928651980,-873.33,0.00038356,8]
[394752624,1763928651990,-500.0,0.00038356,8]
[394752625,1763928651999,-500.0,0.00038356,8]
[394752626,1763928652008,-500.0,0.00038356,8]
[394752627,1763928652018,-500.0,0.00038356,8]
[394752628,1763928652027,-500.0,0.00038356,8]
[394752629,1763928652036,-559.82,0.00038356,8]
[394752630,1763928652045,-500.0,0.00038356,8]
[394752631,1763928652055,-467.99345174,0.00038356,8]
[394752632,1763928652065,-1373.7,0.00038356,8]
[394752633,1763928652075,-452.44570234,0.00038356,8]
[394752634,1763928652084,-151.0,0.00038356,31]
[394752635,1763928652093,-500.0,0.00038356,8]
[394752636,1763928652102,-500.0,0.00038356,8]
[394752637,1763928652111,-500.0,0.00038356,8]
[394752638,1763928652120,-500.0,0.00038356,8]
[394752639,1763928652129,-1300.54,0.00038356,8]
[394752640,1763928652138,-151.0,0.00038356,31]
[394752641,1763928652147,-500.0,0.00038356,8]
[394752642,1763928652157,-500.0,0.00038356,8]
[394752643,1763928652167,-500.0,0.00038356,8]
[394752644,1763928652176,-905.59,0.00038356,8]
[394752645,1763928652186,-500.0,0.00038356,8]
[394752646,1763928652195,-500.0,0.00038356,8]
[394752647,1763928652204,-583.84,0.00038356,8]
[394752648,1763928652213,-500.0,0.00038356,8]
[394752649,1763928652222,-151.0,0.00038356,31]
[394752650,1763928652231,-500.0,0.00038356,8]
[394752651,1763928652240,-500.0,0.00038356,8]
[394752652,1763928652250,-635.30525626,0.00038356,8]
[394752653,1763928652261,-500.0,0.00038356,8]
[394752654,1763928652270,-500.0,0.00038356,8]
[394752655,1763928652279,-500.0,0.00038356,8]
[394752656,1763928652289,-500.0,0.00038356,8]
[394752657,1763928652299,-500.0,0.00038356,8]
[394752658,1763928652308,-500.0,0.00038356,8]
[394752659,1763928652317,-1235.78,0.00038356,8]
[394752660,1763928652327,-500.0,0.00038356,8]
[394752661,1763928652337,-500.0,0.00038356,8]
[394752662,1763928652346,-151.0,0.00038356,31]
[394752663,1763928652355,-586.43,0.00038356,8]
[394752664,1763928652364,-500.0,0.00038356,8]
[394752665,1763928652374,-500.0,0.00038356,8]
[394752666,1763928652383,-500.0,0.00038356,8]
[394752667,1763928652392,-842.0,0.00038356,8]
[394752668,1763928652407,-500.0,0.00038356,8]
[394752669,1763928652417,-500.0,0.00038356,8]
[394752670,1763928652429,-500.0,0.00038356,8]
[394752671,1763928652439,-500.0,0.00038356,8]
[394752672,1763928652448,-500.0,0.00038356,8]
[394752673,1763928652458,-500.0,0.00038356,8]
[394752674,1763928652467,-500.0,0.00038356,8]
[394752675,1763928652477,-151.0,0.00038356,31]
[394752676,1763928652487,-500.0,0.00038356,8]
[394752677,1763928652496,-500.0,0.00038356,2]
[394752678,1763928652506,-576.49958739,0.00038356,8]
[394752679,1763928652515,-500.0,0.00038356,8]
[394752680,1763928652525,-500.0,0.00038356,8]
[394752681,1763928652534,-500.0,0.00038356,8]
[394752682,1763928652544,-500.0,0.00038356,8]
[394752683,1763928652553,-594.55,0.00038356,8]
[394752684,1763928652563,-493.72871533,0.00038356,8]
[394752685,1763928652576,-6.27128467,0.00038356,8]
[394752686,1763928652586,-500.0,0.00038356,8]
[394752687,1763928652595,-500.0,0.00038356,8]
[394752688,1763928652605,-500.0,0.00038356,8]
[394752689,1763928652615,-750.62,0.00038356,8]
[394752690,1763928652624,-500.0,0.00038356,8]
[394752691,1763928652633,-500.0,0.00038356,8]
[394752692,1763928652643,-500.0,0.00038356,8]
[394752693,1763928652653,-738.16,0.00038356,8]
[394752694,1763928652663,-500.0,0.00038356,8]
[394752695,1763928652673,-500.0,0.00038356,8]
[394752696,1763928652682,-500.0,0.00038356,8]
[394752697,1763928652692,-500.0,0.00038356,8]
[394752698,1763928652701,-500.0,0.00038356,8]
[394752699,1763928652711,-500.0,0.00038356,8]
[394752700,1763928652720,-500.0,0.00038356,8]
[394752701,1763928652729,-757.69,0.00038356,8]
[394752702,1763928652738,-500.0,0.00038356,8]
[394752703,1763928652747,-500.0,0.00038356,8]
[394752704,1763928652757,-500.0,0.00038356,8]
[394752705,1763928652767,-500.0,0.00038356,8]
[394752706,1763928652776,-513.01773631,0.00038356,8]
[394752707,1763928652785,-500.0,0.00038356,8]
[394752708,1763928652799,-1037.99,0.00038356,8]
[394752709,1763928652808,-5115.11,0.00038356,8]
[394752710,1763928652818,-500.0,0.00038356,8]
[394752711,1763928652827,-500.0,0.00038356,8]
[394752712,1763928652836,-500.0,0.00038356,8]
[394752713,1763928652845,-500.0,0.00038356,8]
[394752714,1763928652854,-500.0,0.00038356,8]
[394752715,1763928652863,-500.0,0.00038356,8]
[394752716,1763928652872,-500.0,0.00038356,8]
[394752717,1763928652881,-154.25143589,0.00038356,8]
[394752718,1763928652890,-500.0,0.00038356,8]
[394752719,1763928652900,-500.0,0.00038356,8]
[394752720,1763928652909,-500.0,0.00038356,8]
[394752721,1763928652918,-516.07016131,0.00038356,8]
[394752722,1763928652927,-683.49623438,0.00038356,8]
[394752723,1763928652940,-6182.06376562,0.00038356,8]
[394752724,1763928652949,-500.0,0.00038356,8]
[394752725,1763928652959,-500.0,0.00038356,8]
[394752726,1763928652968,-434.05135799,0.00038356,8]
[394752727,1763928652979,-65.94864201,0.00038356,8]
[394752728,1763928652988,-151.0,0.00038356,31]
[394752729,1763928652998,-500.0,0.00038356,8]
[394752730,1763928653006,-780.72,0.00038356,8]
[394752731,1763928653015,-151.0,0.00038356,31]
[394752732,1763928653024,-500.0,0.00038356,8]
[394752733,1763928653033,-500.0,0.00038356,8]
[394752734,1763928653042,-500.0,0.00038356,8]
[394752735,1763928653051,-500.0,0.00038356,8]
[394752736,1763928653071,-500.0,0.00038356,8]
[394752737,1763928653093,-227.48135799,0.00038356,8]
[394752738,1763928653130,-279.5831,0.00038356,8]
[394752739,1763928653155,-108.23554201,0.00038356,8]
[394752740,1763928653176,-500.0,0.00038356,8]
[394752741,1763928653198,-500.0,0.00038356,8]
[394752742,1763928653219,-590.94297344,0.00038356,8]
[394752743,1763928653240,-391.23046113,0.00038356,8]
[394752744,1763928653266,-108.76953887,0.00038356,8]
[394752745,1763928653624,-500.0,0.00038356,8]
[394752746,1763928653634,-978.45,0.00038356,8]
[394752747,1763928653644,-500.0,0.00038356,8]
[394752748,1763928653655,-500.0,0.00038356,8]
[394752749,1763928653665,-500.0,0.00038356,8]
[394752750,1763928653675,-500.0,0.00038356,8]
[394752751,1763928653685,-500.0,0.00038356,8]
[394752752,1763928653696,-500.0,0.00038356,8]
[394752753,1763928653706,-500.0,0.00038356,8]
[394752754,1763928653715,-642.73,0.00038356,8]
[394752755,1763928653724,-1061.01,0.00038356,8]
[394752756,1763928653734,-500.0,0.00038356,8]
[394752757,1763928653744,-500.0,0.00038356,8]
[394752758,1763928653753,-151.0,0.00038356,31]
[394752759,1763928653762,-225.106639,0.00038356,31]
[394752760,1763928653772,-500.0,0.00038356,8]
[394752761,1763928653782,-500.0,0.00038356,8]
[394752762,1763928653791,-500.0,0.00038356,8]
[394752763,1763928653800,-151.0,0.00038356,31]
[394752764,1763928653810,-500.0,0.00038356,8]
[394752765,1763928653819,-500.0,0.00038356,8]
[394752766,1763928653829,-392.75718976,0.00038356,5]
[394752767,1763928653839,-641.14,0.00038356,8]
[394752768,1763928653848,-151.0,0.00038356,31]
[394752769,1763928653857,-513.11,0.00038356,8]
[394752770,1763928653867,-500.0,0.00038356,8]
[394752771,1763928653878,-500.0,0.00038356,8]
[394752772,1763928653887,-500.0,0.00038356,8]
[394752773,1763928653898,-256.266464,0.00038356,31]
[394752774,1763928653907,-500.0,0.00038356,8]
[394752775,1763928653917,-500.0,0.00038356,8]
[394752776,1763928653927,-500.0,0.00038356,8]
[394752777,1763928653937,-256.266464,0.00038356,31]
[394752778,1763928653947,-256.266464,0.00038356,31]
[394752779,1763928653960,-500.0,0.00038356,8]
[394752780,1763928653970,-256.266464,0.00038356,31]
[394752781,1763928653980,-319.00126276,0.00038356,2]
[394752782,1763928653989,-600.0,0.00038356,30]
[394752783,1763928653999,-150.0,0.00038356,5]
[394752784,1763928654008,-500.0,0.00038373,5]
[394752785,1763928654018,-500.0,0.00038373,5]
[394752786,1763928654027,-500.0,0.00038373,5]
[394752787,1763928654036,-500.0,0.00038373,5]
[394752788,1763928654046,-366.0135026,0.00038373,5]
[394752789,1763928654055,-1000.0,0.000384,2]
[394752790,1763928654064,-217.83804072,0.00038431,2]
[394752791,1763928654074,-378.54858533,0.00038431,2]
[394752792,1763928654084,-1000.0,0.00038486,3]
[394752793,1763928654093,-191.36969758,0.0003853,2]
[394752794,1763928654103,-150.0,0.00038548,2]
[394752795,1763928654112,-168.0,0.00038569,2]
[394752796,1763928654122,-940.0,0.00038585,120]
[394752797,1763928654132,-200.0,0.00038599,20]
[394752798,1763928654143,-2000.0,0.000386,2]
[394752799,1763928654153,-500.0,0.00038629,8]
[394752800,1763928654162,-500.0,0.00038629,7]
[394752801,1763928654171,-500.0,0.00038629,8]
[394752802,1763928654181,-500.0,0.00038629,8]
[394752803,1763928654190,-150.0,0.00038629,20]
[394752804,1763928654200,-1000.0,0.00038629,3]
[394752805,1763928654209,-1000.0,0.00038629,3]
[394752806,1763928654220,-500.0,0.00038629,2]
[394752807,1763928654230,-500.0,0.0003863,8]
[394752808,1763928654240,-500.0,0.0003863,8]
[394752809,1763928654251,-500.0,0.0003863,8]
[394752810,1763928654262,-500.0,0.0003863,8]
[394752811,1763928654272,-500.0,0.0003863,8]
[394752812,1763928654281,-548.32439514,0.0003863,8]
[394752813,1763928654292,-218.73640246,0.0003863,8]
[394752814,1763928654301,-500.0,0.0003863,8]
[394752815,1763928654311,-578.8,0.0003863,8]
[394752816,1763928654320,-500.0,0.0003863,8]
[394752817,1763928654330,-500.0,0.0003863,8]
[394752818,1763928654340,-500.0,0.0003863,8]
[394752819,1763928654350,-508.4681094,0.0003863,8]
[394752820,1763928654359,-500.0,0.0003863,8]
[394752821,1763928654369,-415.5741458,0.0003863,8]
[394752822,1763928654378,-500.0,0.0003863,8]
[394752823,1763928654388,-500.0,0.0003863,8]
[394752824,1763928654399,-500.0,0.0003863,8]
[394752825,1763928654409,-500.0,0.0003863,8]
[394752826,1763928654420,-500.0,0.0003863,8]
[394752827,1763928654430,-500.0,0.0003863,8]
[394752828,1763928654439,-500.0,0.0003863,8]
[394752829,1763928654449,-500.0,0.0003863,8]
[394752830,1763928654458,-549.24,0.0003863,8]
[394752831,1763928654468,-595.57,0.0003863,8]
[394752832,1763928654477,-500.0,0.0003863,8]
[394752833,1763928654487,-500.0,0.0003863,8]
[394752834,1763928654497,-500.0,0.0003863,8]
[394752835,1763928654506,-155.91960181,0.0003863,8]
[394752836,1763928654515,-660.49,0.0003863,8]
[394752837,1763928654525,-500.0,0.0003863,8]
[394752838,1763928654534,-151.0,0.0003863,30]
[394752839,1763928654543,-500.0,0.0003863,8]
[394752840,1763928654553,-709.07,0.0003863,8]
[394752841,1763928654563,-500.0,0.0003863,8]
[394752842,1763928654572,-500.0,0.0003863,8]
[394752843,1763928654582,-500.0,0.0003863,8]
[394752844,1763928654592,-500.0,0.0003863,8]
[394752845,1763928654601,-500.0,0.0003863,8]
[394752846,1763928654611,-500.0,0.0003863,8]
[394752847,1763928654620,-500.0,0.0003863,8]
[394752848,1763928654630,-500.0,0.0003863,8]
[394752849,1763928654640,-288.56668302,0.0003863,8]
[394752850,1763928654651,-500.0,0.0003863,8]
[394752851,1763928654661,-500.0,0.0003863,8]
[394752852,1763928654671,-500.0,0.0003863,8]
[394752853,1763928654680,-500.0,0.0003863,8]
[394752854,1763928654690,-500.0,0.0003863,8]
[394752855,1763928654699,-439.28283948,0.0003863,8]
[394752856,1763928654708,-500.0,0.0003863,8]
[394752857,1763928654718,-500.0,0.0003863,8]
[394752858,1763928654739,-500.0,0.0003863,8]
[394752859,1763928654748,-500.0,0.0003863,8]
[394752860,1763928654758,-500.0,0.0003863,8]
[394752861,1763928654768,-500.0,0.0003863,8]
[394752862,1763928654778,-501.28,0.0003863,8]
[394752863,1763928654788,-151.0,0.0003863,120]
[394752864,1763928654798,-500.0,0.0003863,8]
[394752865,1763928654807,-645.11,0.0003863,8]
[394752866,1763928654816,-500.0,0.0003863,8]
[394752867,1763928654825,-500.0,0.0003863,8]
[394752868,1763928654834,-500.0,0.0003863,8]
[394752869,1763928654843,-500.0,0.0003863,8]
[394752870,1763928654851,-500.0,0.0003863,8]
[394752871,1763928654862,-500.0,0.0003863,8]
[394752872,1763928654872,-500.0,0.0003863,8]
[394752873,1763928654880,-500.0,0.0003863,8]
[394752874,1763928654889,-559.3,0.0003863,8]
[394752875,1763928654898,-500.0,0.0003863,8]
[394752876,1763928654907,-500.0,0.0003863,8]
[394752877,1763928654916,-500.0,0.0003863,8]
[394752878,1763928654924,-527.35,0.0003863,8]
[394752879,1763928654933,-500.0,0.0003863,8]
[394752880,1763928654943,-500.0,0.0003863,8]
[394752881,1763928654953,-151.0,0.0003863,120]
[394752882,1763928654963,-500.0,0.0003863,8]
[394752883,1763928654973,-578.87878002,0.0003863,8]
[394752884,1763928654983,-500.0,0.0003863,2]
[394752885,1763928654992,-500.0,0.0003863,8]
[394752886,1763928655002,-500.0,0.0003863,8]
[394752887,1763928655012,-500.0,0.0003863,8]
[394752888,1763928655022,-549.46,0.0003863,8]
[394752889,1763928655031,-500.0,0.0003863,8]
[394752890,1763928655041,-500.0,0.0003863,8]
[394752891,1763928655051,-500.0,0.0003863,8]
[394752892,1763928655060,-500.0,0.0003863,8]
[394752893,1763928655070,-500.0,0.0003863,8]
[394752894,1763928655080,-500.0,0.0003863,8]
[394752895,1763928655090,-500.0,0.0003863,8]
[394752896,1763928655100,-500.0,0.0003863,8]
[394752897,1763928655110,-529.52,0.0003863,8]
[394752898,1763928655120,-573.26,0.0003863,8]
[394752899,1763928655129,-500.0,0.0003863,8]
[394752900,1763928655139,-515.93,0.0003863,8]
[394752901,1763928655148,-500.0,0.0003863,8]
[394752902,1763928655158,-226.073407,0.0003863,120]
[394752903,1763928655167,-545.39,0.0003863,8]
[394752904,1763928655177,-500.0,0.0003863,8]
[394752905,1763928655187,-644.46,0.0003863,8]
[394752906,1763928655197,-500.0,0.0003863,8]
[394752907,1763928655206,-500.0,0.0003863,8]
[394752908,1763928655215,-500.0,0.0003863,8]
[394752909,1763928655225,-500.0,0.0003863,8]
[394752910,1763928655235,-500.0,0.0003863,8]
[394752911,1763928655244,-935.22,0.0003863,8]
[394752912,1763928655258,-500.0,0.0003863,8]
[394752913,1763928655267,-500.0,0.0003863,8]
[394752914,1763928655277,-572.43,0.0003863,8]
[394752915,1763928655287,-507.95,0.0003863,8]
[394752916,1763928655296,-905.16,0.0003863,8]
[394752917,1763928655306,-502.51,0.0003863,8]
[394752918,1763928655316,-500.0,0.0003863,8]
[394752919,1763928655326,-656.93,0.0003863,8]
[394752920,1763928655336,-233.0437479,0.0003863,8]
[394752921,1763928655346,-500.0,0.0003863,8]
[394752922,1763928655356,-500.0,0.0003863,8]
[394752923,1763928655365,-500.0,0.0003863,8]
[394752924,1763928655375,-500.0,0.0003863,8]
[394752925,1763928655384,-500.0,0.0003863,8]
[394752926,1763928655394,-842.65,0.0003863,8]
[394752927,1763928655406,-500.0,0.0003863,8]
[394752928,1763928655416,-530.5604855,0.0003863,8]
[394752929,1763928655425,-500.0,0.0003863,8]
[394752930,1763928655434,-500.0,0.0003863,8]
[394752931,1763928655443,-500.0,0.0003863,8]
[394752932,1763928655454,-500.0,0.0003863,8]
[394752933,1763928655463,-159.474485,0.0003863,120]
[394752934,1763928655473,-151.0,0.0003863,120]
[394752935,1763928655482,-500.0,0.0003863,8]
[394752936,1763928655492,-500.0,0.0003863,8]
[394752937,1763928655502,-500.0,0.0003863,8]
[394752938,1763928655511,-500.0,0.0003863,8]
[394752939,1763928655521,-500.0,0.0003863,8]
[394752940,1763928655531,-151.0,0.0003863,120]
[394752941,1763928655540,-500.0,0.0003863,8]
[394752942,1763928655550,-500.0,0.0003863,8]
[394752943,1763928655559,-417.04921427,0.0003863,8]
[394752944,1763928655569,-500.0,0.0003863,8]
[394752945,1763928655579,-500.0,0.0003863,8]
[394752946,1763928655588,-500.0,0.0003863,8]
[394752947,1763928655597,-500.0,0.0003863,8]
[394752948,1763928655607,-214.56524991,0.0003863,8]
[394752949,1763928655616,-548.0,0.0003863,8]
[394752950,1763928655626,-545.87,0.0003863,8]
[394752951,1763928655635,-700.0,0.0003863,120]
[394752952,1763928655645,-500.0,0.0003863,8]
[394752953,1763928655661,-500.0,0.0003863,8]
[394752954,1763928655671,-500.0,0.0003863,8]
[394752955,1763928655681,-500.0,0.0003863,8]
[394752956,1763928655691,-500.0,0.0003863,8]
[394752957,1763928655702,-500.0,0.0003863,8]
[394752958,1763928655712,-500.0,0.0003863,8]
[394752959,1763928655722,-744.82,0.0003863,8]
[394752960,1763928655732,-500.0,0.0003863,8]
[394752961,1763928655741,-500.0,0.0003863,8]
[394752962,1763928655751,-500.0,0.0003863,8]
[394752963,1763928655760,-711.27,0.0003863,8]
[394752964,1763928655770,-500.0,0.0003863,8]
[394752965,1763928655779,-500.0,0.0003863,8]
[394752966,1763928655789,-513.02,0.0003863,8]
[394752967,1763928655800,-500.0,0.0003863,8]
[394752968,1763928655810,-500.0,0.0003863,8]
[394752969,1763928655819,-500.0,0.0003863,8]
[394752970,1763928655829,-500.0,0.0003863,8]
[394752971,1763928655838,-151.0,0.0003863,120]
[394752972,1763928655848,-500.0,0.0003863,8]
[394752973,1763928655857,-500.0,0.0003863,8]
[394752974,1763928655867,-500.0,0.0003863,8]
[394752975,1763928655876,-500.0,0.0003863,8]
[394752976,1763928655886,-500.0,0.0003863,8]
[394752977,1763928655895,-500.0,0.0003863,8]
[394752978,1763928655906,-500.0,0.0003863,8]
[394752979,1763928655915,-500.0,0.0003863,8]
[394752980,1763928655924,-500.0,0.0003863,8]
[394752981,1763928655933,-500.0,0.0003863,8]
[394752982,1763928655943,-500.0,0.0003863,8]
[394752983,1763928655953,-2200.0,0.0003863,7]
[394752984,1763928655962,-500.0,0.0003863,8]
[394752985,1763928655971,-151.0,0.0003863,120]
[394752986,1763928656108,-515.88154822,0.0003863,8]
[394752987,1763928656117,-500.0,0.0003863,8]
[394752988,1763928656126,-500.0,0.0003863,8]
[394752989,1763928656136,-151.0,0.0003863,120]
[394752990,1763928656145,-500.0,0.0003863,8]
[394752991,1763928656156,-500.0,0.0003863,8]
[394752992,1763928656165,-500.0,0.0003863,8]
[394752993,1763928656174,-500.0,0.0003863,8]
[394752994,1763928656183,-500.0,0.0003863,8]
[394752995,1763928656192,-151.0,0.0003863,120]
[394752996,1763928656201,-590.45,0.0003863,8]
[394752997,1763928656210,-500.0,0.0003863,8]
[394752998,1763928656219,-151.0,0.0003863,120]
[394752999,1763928656228,-500.0,0.0003863,8]
[394753000,1763928656237,-500.0,0.0003863,8]
[394753001,1763928656247,-500.0,0.0003863,8]
[394753002,1763928656261,-500.0,0.0003863,8]
[394753003,1763928656270,-603.08,0.0003863,8]
[394753004,1763928656279,-500.0,0.0003863,8]
[394753005,1763928656287,-500.0,0.0003863,8]
[394753006,1763928656298,-500.0,0.0003863,8]
[394753007,1763928656307,-500.0,0.0003863,8]